[Event "*** Titled Tuesday Blitz"]
[Site "Chess.com"]
[Date "2018.05.01"]
[Round "5"]
[White "jk13"]
[Black "abubakrtagelsir"]
[Result "1-0"]
[WhiteElo "2516"]
[BlackElo "2345"]
[TimeControl "180+2"]
[EndTime "14:08:46 PDT"]
[Termination "jk13 won on time"]

1. e4 {[%clk 0:03:01.9]} 1... d6 {[%clk 0:02:59.7]} 2. d4 {[%clk 0:03:02.7]}
2... Nf6 {[%clk 0:03:00.4]} 3. Nc3 {[%clk 0:03:04.3]} 3... g6 {[%clk 0:03:00.8]}
4. Be3 {[%clk 0:03:05.2]} 4... c6 {[%clk 0:03:01.6]} 5. a4 {[%clk 0:03:05.2]}
5... Bg7 {[%clk 0:02:49.8]} 6. h3 {[%clk 0:03:06.1]} 6... O-O {[%clk 0:02:49.6]}
7. Nf3 {[%clk 0:03:07.7]} 7... Nbd7 {[%clk 0:02:50.4]} 8. Be2 {[%clk 0:03:08.8]}
8... Qc7 {[%clk 0:02:49.5]} 9. O-O {[%clk 0:03:09.6]} 9... e5 {[%clk 0:02:50.3]}
10. dxe5 {[%clk 0:03:11.5]} 10... dxe5 {[%clk 0:02:50.1]} 11. Nd2 {[%clk
0:03:09.3]} 11... Re8 {[%clk 0:02:48.8]} 12. Nc4 {[%clk 0:03:10.3]} 12... Bf8
{[%clk 0:02:45.1]} 13. Qd2 {[%clk 0:03:07.6]} 13... Nc5 {[%clk 0:02:43.6]} 14.
Bf3 {[%clk 0:02:56.2]} 14... Be6 {[%clk 0:02:41.1]} 15. Qe2 {[%clk 0:02:53.7]}
15... Bxc4 {[%clk 0:02:30.8]} 16. Qxc4 {[%clk 0:02:54.3]} 16... Ne6 {[%clk
0:02:31.3]} 17. Rfd1 {[%clk 0:02:52.1]} 17... b6 {[%clk 0:02:27.2]} 18. Rd2
{[%clk 0:02:25.2]} 18... Rad8 {[%clk 0:02:26.6]} 19. Rad1 {[%clk 0:02:22.8]}
19... Rxd2 {[%clk 0:02:25.6]} 20. Rxd2 {[%clk 0:02:23.2]} 20... Be7 {[%clk
0:02:24]} 21. g3 {[%clk 0:02:17.6]} 21... Rd8 {[%clk 0:02:22.2]} 22. Rxd8+
{[%clk 0:02:09.9]} 22... Bxd8 {[%clk 0:02:21.5]} 23. Kf1 {[%clk 0:02:07.8]}
23... Be7 {[%clk 0:02:22]} 24. b4 {[%clk 0:02:05.3]} 24... Kg7 {[%clk
0:02:16.6]} 25. Ke1 {[%clk 0:01:46.6]} 25... h5 {[%clk 0:02:12.3]} 26. h4 {[%clk
0:01:41.9]} 26... Ne8 {[%clk 0:02:10.9]} 27. b5 {[%clk 0:01:35.8]} 27... cxb5
{[%clk 0:02:07.3]} 28. Qxc7 {[%clk 0:01:32.6]} 28... N8xc7 {[%clk 0:01:52.7]}
29. Nxb5 {[%clk 0:01:29.1]} 29... Bb4+ {[%clk 0:01:33.1]} 30. c3 {[%clk
0:01:09.3]} 30... Nxb5 {[%clk 0:01:16.4]} 31. cxb4 {[%clk 0:01:11.2]} 31... Nc3
{[%clk 0:01:16.3]} 32. a5 {[%clk 0:01:04.6]} 32... bxa5 {[%clk 0:01:16.7]} 33.
bxa5 {[%clk 0:01:05]} 33... Nd4 {[%clk 0:01:17.6]} 34. Bxd4 {[%clk 0:00:46.6]}
34... exd4 {[%clk 0:01:17.6]} 35. e5 {[%clk 0:00:48.5]} 35... f6 {[%clk
0:01:05.5]} 36. exf6+ {[%clk 0:00:40.8]} 36... Kxf6 {[%clk 0:01:05.2]} 37. Kd2
{[%clk 0:00:42.7]} 37... Ke5 {[%clk 0:01:03.5]} 38. Kd3 {[%clk 0:00:39.2]} 38...
Nb1 {[%clk 0:00:58.5]} 39. Bb7 {[%clk 0:00:36]} 39... Na3 {[%clk 0:00:34.9]} 40.
Bc6 {[%clk 0:00:33]} 40... Kf6 {[%clk 0:00:27.5]} 41. Ba4 {[%clk 0:00:32.2]}
41... g5 {[%clk 0:00:21.7]} 42. hxg5+ {[%clk 0:00:33]} 42... Kxg5 {[%clk
0:00:22.4]} 43. Kxd4 {[%clk 0:00:34]} 43... Nb1 {[%clk 0:00:10.6]} 44. Kd3
{[%clk 0:00:33]} 44... Kg4 {[%clk 0:00:03.9]} 45. Bc6 {[%clk 0:00:27.9]} 1-0

[Event "*** Titled Tuesday Blitz"]
[Site "Chess.com"]
[Date "2018.05.01"]
[Round "5"]
[White "Alohamora11"]
[Black "Morshynska"]
[Result "1-0"]
[WhiteElo "2124"]
[BlackElo "2033"]
[TimeControl "180+2"]
[EndTime "14:08:54 PDT"]
[Termination "Alohamora11 won by resignation"]

1. e4 {[%clk 0:03:01.9]} 1... e5 {[%clk 0:02:59.3]} 2. Nf3 {[%clk 0:03:02.5]}
2... Nc6 {[%clk 0:02:55.5]} 3. d4 {[%clk 0:03:03.1]} 3... exd4 {[%clk 0:02:56]}
4. Nxd4 {[%clk 0:03:05]} 4... Bc5 {[%clk 0:02:56.9]} 5. Nb3 {[%clk 0:03:06]}
5... Bb6 {[%clk 0:02:57.4]} 6. Nc3 {[%clk 0:03:07.3]} 6... d6 {[%clk 0:02:58.1]}
7. Qe2 {[%clk 0:03:08.1]} 7... Be6 {[%clk 0:02:47.5]} 8. Be3 {[%clk 0:03:08.1]}
8... Nf6 {[%clk 0:02:45.9]} 9. O-O-O {[%clk 0:03:03]} 9... O-O {[%clk
0:02:43.5]} 10. f3 {[%clk 0:03:04.1]} 10... Re8 {[%clk 0:02:37.9]} 11. h4 {[%clk
0:03:03.2]} 11... Bxe3+ {[%clk 0:02:30.9]} 12. Qxe3 {[%clk 0:03:03.6]} 12... Nh5
{[%clk 0:02:15]} 13. g4 {[%clk 0:03:00.5]} 13... Ng3 {[%clk 0:02:14.1]} 14. Rh3
{[%clk 0:02:53.1]} 14... Nxf1 {[%clk 0:02:14.2]} 15. Rxf1 {[%clk 0:02:55]} 15...
Qe7 {[%clk 0:01:48.9]} 16. Rhh1 {[%clk 0:02:35.4]} 16... Ne5 {[%clk 0:01:46.5]}
17. Nd4 {[%clk 0:02:20.7]} 17... Rad8 {[%clk 0:01:25.3]} 18. Nf5 {[%clk
0:02:16.9]} 18... Bxf5 {[%clk 0:01:06.1]} 19. gxf5 {[%clk 0:02:10.4]} 19... c6
{[%clk 0:00:48.7]} 20. Re1 {[%clk 0:01:20.9]} 20... d5 {[%clk 0:00:33.2]} 21.
exd5 {[%clk 0:01:11.8]} 21... cxd5 {[%clk 0:00:35.1]} 22. Qd4 {[%clk 0:00:32.2]}
22... f6 {[%clk 0:00:33.2]} 23. f4 {[%clk 0:00:23.5]} 23... Nc6 {[%clk
0:00:33.6]} 24. Rxe7 {[%clk 0:00:19.5]} 24... Nxd4 {[%clk 0:00:34.2]} 25. Rxb7
{[%clk 0:00:18.8]} 25... a5 {[%clk 0:00:18.8]} 26. Rd1 {[%clk 0:00:18.8]} 26...
Nxf5 {[%clk 0:00:16.7]} 27. Rxd5 {[%clk 0:00:13.5]} 27... Rxd5 {[%clk
0:00:17.1]} 28. Nxd5 {[%clk 0:00:15.4]} 28... Nxh4 {[%clk 0:00:18.6]} 29. Ne7+
{[%clk 0:00:12.8]} 29... Kh8 {[%clk 0:00:18.9]} 30. Ra7 {[%clk 0:00:09.2]} 30...
Ng2 {[%clk 0:00:18]} 31. f5 {[%clk 0:00:08.4]} 31... Ne3 {[%clk 0:00:18]} 32.
Rxa5 {[%clk 0:00:09.3]} 32... h5 {[%clk 0:00:17.2]} 33. Ng6+ {[%clk 0:00:09.8]}
33... Kh7 {[%clk 0:00:17.9]} 34. Nf4 {[%clk 0:00:09.7]} 34... Rd8 {[%clk
0:00:18.6]} 35. b4 {[%clk 0:00:07.7]} 35... Rd1+ {[%clk 0:00:18.9]} 36. Kb2
{[%clk 0:00:08.3]} 36... Rd2 {[%clk 0:00:19.5]} 37. Rc5 {[%clk 0:00:07.2]} 37...
Rf2 {[%clk 0:00:20.2]} 38. Nxh5 {[%clk 0:00:08.2]} 38... Nxf5 {[%clk 0:00:20.8]}
39. b5 {[%clk 0:00:07.4]} 39... Kg6 {[%clk 0:00:21]} 40. b6 {[%clk 0:00:06.8]}
40... Nd6 {[%clk 0:00:21.2]} 41. Ng3 {[%clk 0:00:07.7]} 41... f5 {[%clk
0:00:21.3]} 42. Rc6 {[%clk 0:00:07.9]} 42... Kg5 {[%clk 0:00:21]} 43. Rxd6
{[%clk 0:00:08.6]} 43... Kg4 {[%clk 0:00:21.3]} 44. b7 {[%clk 0:00:08.2]} 1-0

[Event "*** Titled Tuesday Blitz"]
[Site "Chess.com"]
[Date "2018.05.01"]
[Round "5"]
[White "LADIESGET2KNOWME"]
[Black "daro94"]
[Result "0-1"]
[WhiteElo "2538"]
[BlackElo "2726"]
[TimeControl "180+2"]
[EndTime "14:08:58 PDT"]
[Termination "daro94 won by resignation"]

1. e4 {[%clk 0:03:01.9]} 1... e5 {[%clk 0:02:56.6]} 2. Nf3 {[%clk 0:03:02.4]}
2... Nc6 {[%clk 0:02:58.1]} 3. Bc4 {[%clk 0:03:03.6]} 3... Bc5 {[%clk
0:02:58.2]} 4. b4 {[%clk 0:03:04.7]} 4... Bxb4 {[%clk 0:02:58.6]} 5. c3 {[%clk
0:03:06]} 5... Be7 {[%clk 0:02:59.7]} 6. d4 {[%clk 0:03:07.9]} 6... Na5 {[%clk
0:03:00.1]} 7. Be2 {[%clk 0:03:09]} 7... d6 {[%clk 0:03:00.9]} 8. Qa4+ {[%clk
0:03:09.6]} 8... c6 {[%clk 0:03:01.3]} 9. dxe5 {[%clk 0:03:11.5]} 9... dxe5
{[%clk 0:03:01.6]} 10. Nxe5 {[%clk 0:03:13.4]} 10... Nf6 {[%clk 0:03:01.2]} 11.
O-O {[%clk 0:03:14.2]} 11... Qc7 {[%clk 0:02:43.6]} 12. f4 {[%clk 0:03:14.3]}
12... Nd7 {[%clk 0:02:27.8]} 13. Nxd7 {[%clk 0:03:10.3]} 13... Bxd7 {[%clk
0:02:29.7]} 14. Nd2 {[%clk 0:03:11.2]} 14... O-O {[%clk 0:02:25]} 15. Nf3 {[%clk
0:03:12]} 15... c5 {[%clk 0:02:23.9]} 16. Qc2 {[%clk 0:03:12.6]} 16... Rfe8
{[%clk 0:02:21.7]} 17. e5 {[%clk 0:03:13.5]} 17... c4 {[%clk 0:02:04.5]} 18. Be3
{[%clk 0:03:14.1]} 18... Bc5 {[%clk 0:02:02.3]} 19. Bd4 {[%clk 0:03:07.7]} 19...
b5 {[%clk 0:01:56]} 20. Ng5 {[%clk 0:03:06.6]} 20... g6 {[%clk 0:01:47.3]} 21.
Ne4 {[%clk 0:03:07.6]} 21... Be7 {[%clk 0:01:44.2]} 22. g4 {[%clk 0:03:02.5]}
22... Nc6 {[%clk 0:01:41.2]} 23. Bf3 {[%clk 0:02:47.6]} 23... Rad8 {[%clk
0:01:35.2]} 24. Qf2 {[%clk 0:02:48.2]} 24... Nxd4 {[%clk 0:00:56.8]} 25. cxd4
{[%clk 0:02:50.1]} 25... Bc6 {[%clk 0:00:56.9]} 26. f5 {[%clk 0:02:17.5]} 26...
Qd7 {[%clk 0:00:57.6]} 27. e6 {[%clk 0:02:00.3]} 27... Qxd4 {[%clk 0:00:47.8]}
28. f6 {[%clk 0:01:41.3]} 28... Ba3 {[%clk 0:00:12.5]} 29. exf7+ {[%clk
0:01:39.1]} 29... Kxf7 {[%clk 0:00:09.2]} 30. Ng5+ {[%clk 0:01:37.5]} 30... Kxf6
{[%clk 0:00:09]} 31. Bxc6+ {[%clk 0:01:37.6]} 31... Qxf2+ {[%clk 0:00:06.1]} 32.
Rxf2+ {[%clk 0:01:37]} 32... Kxg5 {[%clk 0:00:07.6]} 33. Bxe8 {[%clk 0:01:38.4]}
33... Rxe8 {[%clk 0:00:07.1]} 34. Rd1 {[%clk 0:01:33.7]} 34... Re5 {[%clk
0:00:04.3]} 35. Kg2 {[%clk 0:01:34.3]} 35... c3 {[%clk 0:00:03.7]} 36. Rd7
{[%clk 0:01:22.7]} 36... b4 {[%clk 0:00:04.5]} 37. Rxh7 {[%clk 0:01:15.7]} 37...
Kxg4 {[%clk 0:00:05.2]} 38. Rxa7 {[%clk 0:01:14.9]} 38... Rc5 {[%clk 0:00:05.1]}
39. Rc2 {[%clk 0:01:15.6]} 39... Kf4 {[%clk 0:00:05.6]} 40. Kf2 {[%clk 0:01:09]}
40... Ke4 {[%clk 0:00:05.8]} 41. Ke2 {[%clk 0:01:10.4]} 41... Rh5 {[%clk
0:00:06.3]} 42. Kd1 {[%clk 0:01:07]} 42... Rg5 {[%clk 0:00:04.5]} 43. Rxa3
{[%clk 0:00:42.2]} 43... bxa3 {[%clk 0:00:04.5]} 44. Rxc3 {[%clk 0:00:42.6]}
44... Rg1+ {[%clk 0:00:06]} 45. Kc2 {[%clk 0:00:43]} 45... Rg2+ {[%clk
0:00:07.4]} 46. Kb3 {[%clk 0:00:44.3]} 46... Rxh2 {[%clk 0:00:08.9]} 47. Rg3
{[%clk 0:00:40.6]} 47... Kf5 {[%clk 0:00:09.9]} 48. Kxa3 {[%clk 0:00:42]} 48...
g5 {[%clk 0:00:11.4]} 49. Kb3 {[%clk 0:00:38.8]} 49... g4 {[%clk 0:00:12.2]} 50.
a4 {[%clk 0:00:38.5]} 50... Rh3 {[%clk 0:00:12.1]} 51. Rxh3 {[%clk 0:00:14.7]}
51... gxh3 {[%clk 0:00:14]} 52. Kb4 {[%clk 0:00:16]} 52... h2 {[%clk 0:00:15.2]}
53. Kb5 {[%clk 0:00:17.9]} 53... h1=Q {[%clk 0:00:16.1]} 54. Kb6 {[%clk
0:00:19.4]} 54... Qa8 {[%clk 0:00:16.9]} 55. a5 {[%clk 0:00:21.3]} 55... Ke5
{[%clk 0:00:18]} 56. a6 {[%clk 0:00:23.1]} 56... Kd6 {[%clk 0:00:19.9]} 57. a7
{[%clk 0:00:23.1]} 57... Kd7 {[%clk 0:00:21.8]} 58. Kc5 {[%clk 0:00:24.6]} 58...
Kc8 {[%clk 0:00:23.1]} 59. Kb6 {[%clk 0:00:26.5]} 59... Qb7+ {[%clk 0:00:24.1]}
60. Kc5 {[%clk 0:00:27.2]} 60... Qxa7+ {[%clk 0:00:25.5]} 61. Kc6 {[%clk
0:00:29.1]} 61... Qc7+ {[%clk 0:00:26.8]} 0-1

[Event "*** Titled Tuesday Blitz"]
[Site "Chess.com"]
[Date "2018.05.01"]
[Round "5"]
[White "SipkeErnst"]
[Black "MikaelyanArman"]
[Result "0-1"]
[WhiteElo "2512"]
[BlackElo "2625"]
[TimeControl "180+2"]
[EndTime "14:08:58 PDT"]
[Termination "MikaelyanArman won by resignation"]

1. d4 {[%clk 0:03:01.9]} 1... d5 {[%clk 0:03:00.6]} 2. c4 {[%clk 0:03:02.7]}
2... c6 {[%clk 0:03:01.3]} 3. cxd5 {[%clk 0:03:04]} 3... cxd5 {[%clk 0:03:01.8]}
4. Nc3 {[%clk 0:03:05.1]} 4... Nf6 {[%clk 0:03:00]} 5. Bf4 {[%clk 0:03:06]} 5...
Nc6 {[%clk 0:03:01.1]} 6. e3 {[%clk 0:03:06.6]} 6... Bf5 {[%clk 0:03:02]} 7. Nf3
{[%clk 0:03:05.3]} 7... e6 {[%clk 0:03:02.1]} 8. Rc1 {[%clk 0:03:03.9]} 8... Rc8
{[%clk 0:02:57.2]} 9. Qb3 {[%clk 0:02:59.7]} 9... Bb4 {[%clk 0:02:56.1]} 10. Ne5
{[%clk 0:02:49.5]} 10... O-O {[%clk 0:02:38.5]} 11. Nxc6 {[%clk 0:02:49.8]}
11... Bxc3+ {[%clk 0:02:39.5]} 12. Rxc3 {[%clk 0:02:51.1]} 12... Rxc6 {[%clk
0:02:38.5]} 13. Rxc6 {[%clk 0:02:49]} 13... bxc6 {[%clk 0:02:39.8]} 14. Be2
{[%clk 0:02:49.9]} 14... Qa5+ {[%clk 0:02:39.2]} 15. Qc3 {[%clk 0:02:49.5]}
15... Qxa2 {[%clk 0:02:34.7]} 16. O-O {[%clk 0:02:49.7]} 16... Ne4 {[%clk
0:02:34.9]} 17. Qxc6 {[%clk 0:02:38.7]} 17... Qxb2 {[%clk 0:02:32.7]} 18. Ba6
{[%clk 0:02:37.9]} 18... h6 {[%clk 0:02:07.7]} 19. h3 {[%clk 0:02:35]} 19... Nd2
{[%clk 0:02:03.1]} 20. Re1 {[%clk 0:02:21.2]} 20... Ne4 {[%clk 0:01:42.4]} 21.
Rf1 {[%clk 0:02:20.9]} 21... Nc3 {[%clk 0:01:40.6]} 22. Bd6 {[%clk 0:02:17.1]}
22... Rd8 {[%clk 0:01:36.4]} 23. Qc7 {[%clk 0:02:06.7]} 23... Qb6 {[%clk
0:01:30.2]} 24. Qxb6 {[%clk 0:01:40.9]} 24... axb6 {[%clk 0:01:32.1]} 25. Bc7
{[%clk 0:01:41.8]} 25... Ra8 {[%clk 0:01:30.4]} 26. Ra1 {[%clk 0:01:41.7]} 26...
Bd3 {[%clk 0:01:23.9]} 27. Ra3 {[%clk 0:01:21.1]} 27... Ne2+ {[%clk 0:01:23.7]}
28. Kh2 {[%clk 0:01:22]} 28... Bxa6 {[%clk 0:01:20.4]} 29. Bxb6 {[%clk
0:01:23.1]} 29... Nc1 {[%clk 0:01:15.3]} 30. f3 {[%clk 0:01:17.3]} 30... Nd3
{[%clk 0:01:15]} 31. g4 {[%clk 0:01:16.8]} 31... Ne1 {[%clk 0:01:08.3]} 32. Kg3
{[%clk 0:01:17]} 32... Nd3 {[%clk 0:00:57.4]} 33. h4 {[%clk 0:01:11.9]} 33...
Nb2 {[%clk 0:00:56.9]} 34. Bc7 {[%clk 0:01:02.4]} 34... Rc8 {[%clk 0:00:54.4]}
35. Bf4 {[%clk 0:00:55.3]} 35... Rc6 {[%clk 0:00:52.1]} 36. Rb3 {[%clk
0:00:55.8]} 36... Nd3 {[%clk 0:00:51.8]} 37. Rb8+ {[%clk 0:00:53.1]} 37... Rc8
{[%clk 0:00:47.9]} 38. Rb6 {[%clk 0:00:50.1]} 38... Nxf4 {[%clk 0:00:47.3]} 39.
Kxf4 {[%clk 0:00:50.9]} 39... Bc4 {[%clk 0:00:46.9]} 40. h5 {[%clk 0:00:46.6]}
40... Ra8 {[%clk 0:00:47.4]} 41. Rc6 {[%clk 0:00:46]} 41... Bd3 {[%clk
0:00:47.8]} 42. Rc7 {[%clk 0:00:46.1]} 42... g6 {[%clk 0:00:44.1]} 43. hxg6
{[%clk 0:00:46.2]} 43... Bxg6 {[%clk 0:00:44.7]} 44. e4 {[%clk 0:00:39.9]} 44...
dxe4 {[%clk 0:00:42.2]} 45. fxe4 {[%clk 0:00:40.9]} 45... Ra1 {[%clk 0:00:39.4]}
46. d5 {[%clk 0:00:38.5]} 46... Re1 {[%clk 0:00:34.6]} 47. Rc4 {[%clk
0:00:21.7]} 47... exd5 {[%clk 0:00:25.8]} 48. exd5 {[%clk 0:00:23.6]} 48... Kf8
{[%clk 0:00:26.8]} 49. Rc7 {[%clk 0:00:23.8]} 49... Ke8 {[%clk 0:00:25]} 50. Ra7
{[%clk 0:00:20.7]} 50... Re4+ {[%clk 0:00:24.5]} 51. Kf3 {[%clk 0:00:20.7]}
51... Rd4 {[%clk 0:00:25.6]} 52. Ra8+ {[%clk 0:00:21.8]} 52... Ke7 {[%clk
0:00:26.2]} 53. Rh8 {[%clk 0:00:22.6]} 53... Rxd5 {[%clk 0:00:24.8]} 54. Rxh6
{[%clk 0:00:23.6]} 54... Kf6 {[%clk 0:00:26.2]} 55. Rh8 {[%clk 0:00:24.1]} 55...
Kg5 {[%clk 0:00:26.4]} 0-1

[Event "*** Titled Tuesday Blitz"]
[Site "Chess.com"]
[Date "2018.05.01"]
[Round "5"]
[White "Didici"]
[Black "DrVelja"]
[Result "0-1"]
[WhiteElo "2414"]
[BlackElo "2534"]
[TimeControl "180+2"]
[EndTime "14:09:02 PDT"]
[Termination "DrVelja won on time"]

1. d4 {[%clk 0:03:01]} 1... Nf6 {[%clk 0:03:00.8]} 2. c4 {[%clk 0:03:00.2]} 2...
g6 {[%clk 0:03:02.2]} 3. f3 {[%clk 0:02:59.6]} 3... Bg7 {[%clk 0:03:04.1]} 4. e4
{[%clk 0:02:58.9]} 4... d6 {[%clk 0:03:06]} 5. Ne2 {[%clk 0:02:58.3]} 5... O-O
{[%clk 0:03:07]} 6. Be3 {[%clk 0:02:56.1]} 6... c5 {[%clk 0:03:08.4]} 7. d5
{[%clk 0:02:55.3]} 7... e6 {[%clk 0:03:03.6]} 8. Nec3 {[%clk 0:02:56.5]} 8...
exd5 {[%clk 0:02:53.1]} 9. cxd5 {[%clk 0:02:58.4]} 9... a6 {[%clk 0:02:51.8]}
10. a4 {[%clk 0:02:58.8]} 10... Nbd7 {[%clk 0:02:52.9]} 11. Na3 {[%clk
0:02:58.5]} 11... Ne5 {[%clk 0:02:52.2]} 12. Nc4 {[%clk 0:02:57]} 12... Nxc4
{[%clk 0:02:52.2]} 13. Bxc4 {[%clk 0:02:57.7]} 13... Ne8 {[%clk 0:02:46.4]} 14.
O-O {[%clk 0:02:57.5]} 14... Nc7 {[%clk 0:02:47.7]} 15. a5 {[%clk 0:02:50.3]}
15... Rb8 {[%clk 0:02:48.5]} 16. Qd3 {[%clk 0:02:43.5]} 16... b5 {[%clk
0:02:41.7]} 17. axb6 {[%clk 0:02:43.3]} 17... Rxb6 {[%clk 0:02:43.2]} 18. b3
{[%clk 0:02:41.7]} 18... f5 {[%clk 0:02:19.4]} 19. Rae1 {[%clk 0:02:35.8]} 19...
a5 {[%clk 0:02:04.3]} 20. Na4 {[%clk 0:02:20.7]} 20... Rb8 {[%clk 0:02:01.9]}
21. Bd2 {[%clk 0:02:21.1]} 21... Bd4+ {[%clk 0:01:45.5]} 22. Kh1 {[%clk
0:02:13.3]} 22... Ra8 {[%clk 0:01:31]} 23. Nb6 {[%clk 0:02:06.3]} 23... Ra7
{[%clk 0:01:22.7]} 24. Nxc8 {[%clk 0:01:57.2]} 24... Qxc8 {[%clk 0:01:24.6]} 25.
e5 {[%clk 0:01:39]} 25... dxe5 {[%clk 0:00:58.4]} 26. d6+ {[%clk 0:01:38.8]}
26... Ne6 {[%clk 0:00:59.8]} 27. Bc3 {[%clk 0:01:36.8]} 27... Kh8 {[%clk
0:00:41.1]} 28. Bxd4 {[%clk 0:01:30.9]} 28... Nxd4 {[%clk 0:00:43]} 29. Rxe5
{[%clk 0:01:31.1]} 29... Qc6 {[%clk 0:00:34.3]} 30. Rd5 {[%clk 0:01:31.5]} 30...
Rd7 {[%clk 0:00:32.6]} 31. Rxd4 {[%clk 0:01:31.4]} 31... cxd4 {[%clk 0:00:31.1]}
32. Qxd4+ {[%clk 0:01:33.3]} 32... Rg7 {[%clk 0:00:32.4]} 33. Re1 {[%clk
0:01:29.8]} 33... Re8 {[%clk 0:00:32.9]} 34. Re5 {[%clk 0:00:28.8]} 34... h6
{[%clk 0:00:09.5]} 35. h4 {[%clk 0:00:24.4]} 35... Kh7 {[%clk 0:00:10]} 36. Bb5
{[%clk 0:00:22.1]} 36... Qc1+ {[%clk 0:00:10]} 37. Kh2 {[%clk 0:00:22.9]} 37...
Rd8 {[%clk 0:00:06.9]} 38. f4 {[%clk 0:00:12.4]} 38... Qc8 {[%clk 0:00:04.2]}
39. Rd5 {[%clk 0:00:12.3]} 39... Qe6 {[%clk 0:00:03.9]} 40. d7 {[%clk
0:00:11.2]} 40... Qe7 {[%clk 0:00:05.3]} 41. Re5 {[%clk 0:00:11.4]} 41... Qxh4+
{[%clk 0:00:05.8]} 42. Kg1 {[%clk 0:00:12.1]} 42... Qf6 {[%clk 0:00:07]} 43. Qd5
{[%clk 0:00:12.7]} 43... Qb6+ {[%clk 0:00:06.9]} 44. Kh2 {[%clk 0:00:13.6]}
44... Qc7 {[%clk 0:00:07.1]} 45. Re8 {[%clk 0:00:13.2]} 45... Qxf4+ {[%clk
0:00:05.9]} 46. g3 {[%clk 0:00:11.5]} 46... Qf2+ {[%clk 0:00:06.3]} 47. Kh3
{[%clk 0:00:11.5]} 47... Qb6 {[%clk 0:00:06.6]} 0-1

[Event "*** Titled Tuesday Blitz"]
[Site "Chess.com"]
[Date "2018.05.01"]
[Round "5"]
[White "GP9isback23"]
[Black "alturas_pacificas"]
[Result "1-0"]
[WhiteElo "2265"]
[BlackElo "2148"]
[TimeControl "180+2"]
[EndTime "14:09:05 PDT"]
[Termination "GP9isback23 won by resignation"]

1. d4 {[%clk 0:03:00.9]} 1... d5 {[%clk 0:03:00.8]} 2. Nf3 {[%clk 0:03:01]} 2...
Nf6 {[%clk 0:03:01]} 3. c4 {[%clk 0:02:59.7]} 3... c6 {[%clk 0:03:02]} 4. Nc3
{[%clk 0:02:59.2]} 4... e6 {[%clk 0:03:03.2]} 5. cxd5 {[%clk 0:02:57.5]} 5...
exd5 {[%clk 0:03:03.6]} 6. Bg5 {[%clk 0:02:59]} 6... Nbd7 {[%clk 0:03:03]} 7. e3
{[%clk 0:03:00.1]} 7... Be7 {[%clk 0:03:04]} 8. Bd3 {[%clk 0:03:00.9]} 8... Nf8
{[%clk 0:02:48.6]} 9. Qc2 {[%clk 0:02:58.6]} 9... Bg4 {[%clk 0:02:46.1]} 10. Ne5
{[%clk 0:02:54.5]} 10... Bh5 {[%clk 0:02:47.2]} 11. f3 {[%clk 0:02:47.7]} 11...
Bg6 {[%clk 0:02:47.5]} 12. O-O-O {[%clk 0:02:41.7]} 12... Bxd3 {[%clk 0:02:39]}
13. Qxd3 {[%clk 0:02:37.3]} 13... Ng6 {[%clk 0:02:38.7]} 14. Nxg6 {[%clk
0:02:31.1]} 14... hxg6 {[%clk 0:02:38.9]} 15. e4 {[%clk 0:02:31.8]} 15... dxe4
{[%clk 0:02:22.3]} 16. fxe4 {[%clk 0:02:30.9]} 16... Qa5 {[%clk 0:02:02.6]} 17.
e5 {[%clk 0:02:19.3]} 17... Nd5 {[%clk 0:01:55.9]} 18. Bxe7 {[%clk 0:02:18.4]}
18... Nxe7 {[%clk 0:01:57.8]} 19. e6 {[%clk 0:02:06.1]} 19... fxe6 {[%clk
0:01:54.3]} 20. Qe3 {[%clk 0:01:55.7]} 20... O-O-O {[%clk 0:01:30.3]} 21. Qxe6+
{[%clk 0:01:54.6]} 21... Rd7 {[%clk 0:01:31.7]} 22. Rhf1 {[%clk 0:01:51.2]}
22... Qg5+ {[%clk 0:01:29.2]} 23. Kb1 {[%clk 0:01:46.7]} 23... Nf5 {[%clk
0:01:07.8]} 24. d5 {[%clk 0:01:40.4]} 24... cxd5 {[%clk 0:00:24.1]} 25. Rxd5
{[%clk 0:01:31.4]} 25... Rd8 {[%clk 0:00:25.1]} 26. Rfd1 {[%clk 0:01:27.6]}
26... Qe7 {[%clk 0:00:07.3]} 27. Qxe7 {[%clk 0:00:36.2]} 27... Nxe7 {[%clk
0:00:07.7]} 28. Rxd7 {[%clk 0:00:34.1]} 28... Rxd7 {[%clk 0:00:09.6]} 29. Rf1
{[%clk 0:00:33.5]} 29... Nf5 {[%clk 0:00:10.4]} 30. Rf2 {[%clk 0:00:29.9]} 30...
Ne3 {[%clk 0:00:09.5]} 31. h3 {[%clk 0:00:26.6]} 31... a6 {[%clk 0:00:09.9]} 32.
Re2 {[%clk 0:00:21.9]} 32... Nd1 {[%clk 0:00:09.9]} 33. Ne4 {[%clk 0:00:20.6]}
33... Kb8 {[%clk 0:00:08.6]} 34. Kc2 {[%clk 0:00:21.4]} 34... Rd4 {[%clk
0:00:08.6]} 35. Ng3 {[%clk 0:00:20.7]} 35... Rd5 {[%clk 0:00:08.1]} 36. Re1
{[%clk 0:00:19.1]} 36... Nf2 {[%clk 0:00:08.3]} 37. Re2 {[%clk 0:00:20.3]} 37...
Nd1 {[%clk 0:00:08]} 38. Ne4 {[%clk 0:00:21.4]} 38... Rd8 {[%clk 0:00:08.1]} 39.
Nd2 {[%clk 0:00:22.4]} 39... Ne3+ {[%clk 0:00:07.1]} 40. Rxe3 {[%clk 0:00:22.8]}
40... Rc8+ {[%clk 0:00:09]} 41. Rc3 {[%clk 0:00:23.5]} 41... Rh8 {[%clk
0:00:10.9]} 42. Rg3 {[%clk 0:00:24.5]} 42... g5 {[%clk 0:00:12.8]} 43. Rxg5
{[%clk 0:00:23.6]} 43... a5 {[%clk 0:00:14.1]} 44. Rxg7 {[%clk 0:00:24.2]} 44...
b5 {[%clk 0:00:15.5]} 45. a3 {[%clk 0:00:25.5]} 45... b4 {[%clk 0:00:16.8]} 46.
axb4 {[%clk 0:00:25.7]} 46... axb4 {[%clk 0:00:18.7]} 47. Kb3 {[%clk 0:00:26.3]}
47... Rd8 {[%clk 0:00:19.2]} 48. Nc4 {[%clk 0:00:27.4]} 48... Rh8 {[%clk
0:00:19.4]} 49. Kxb4 {[%clk 0:00:28.6]} 49... Rc8 {[%clk 0:00:20.1]} 50. Kb5
{[%clk 0:00:29.8]} 50... Rf8 {[%clk 0:00:21.1]} 51. b4 {[%clk 0:00:29.2]} 51...
Re8 {[%clk 0:00:21.4]} 52. Kc5 {[%clk 0:00:30.2]} 52... Rc8+ {[%clk 0:00:22.2]}
53. Kb5 {[%clk 0:00:29.6]} 53... Rf8 {[%clk 0:00:22.5]} 54. g4 {[%clk
0:00:25.4]} 54... Re8 {[%clk 0:00:23.1]} 55. h4 {[%clk 0:00:25.7]} 55... Rh8
{[%clk 0:00:22.6]} 56. h5 {[%clk 0:00:26.4]} 56... Rd8 {[%clk 0:00:23.9]} 57. h6
{[%clk 0:00:27.3]} 57... Rd5+ {[%clk 0:00:25.1]} 58. Ka4 {[%clk 0:00:27.3]}
58... Rd4 {[%clk 0:00:25.3]} 59. h7 {[%clk 0:00:27.6]} 59... Rd8 {[%clk
0:00:25.4]} 60. Rg8 {[%clk 0:00:28.2]} 1-0